bitfinex-derivatives/quotes_BNBF0:USTF0_20250101
["timestamp","ask_amount","ask_price","bid_price","bid_amount"]
[1735701022220,0.25983511,708.87,708.13,1.05836012]
[1735701022418,0.25983511,708.86,708.13,1.05836012]
[1735701022621,0.25983511,708.85,708.13,1.05836012]
[1735701022815,0.25983511,708.84,708.13,1.05836012]
[1735701023022,0.25983511,708.83,708.15,1.05836012]
[1735701023214,0.25983511,708.82,708.15,1.05836012]
[1735701023417,0.25983511,708.81,708.15,1.05836012]
[1735701023719,0.25983511,708.8,708.15,1.05836012]
[1735701023920,1.47360844,708.99,708.15,1.05836012]
[1735701024121,0.25983936,708.98,708.15,1.05836012]
[1735701024713,0.25983936,708.97,708.15,1.05836012]
[1735701024918,0.25983936,708.96,708.15,1.05836012]
[1735701025118,0.25983936,708.95,708.15,1.05836012]
[1735701025315,0.25983936,708.94,708.15,1.05836012]
[1735701025520,1.47360844,708.99,708.15,1.05836012]
[1735701025521,0.25983936,708.93,708.15,1.05836012]
[1735701025720,0.25983936,708.92,708.15,1.05836012]
[1735701025915,1.47360844,708.99,708.15,1.05836012]
[1735701025916,0.25983936,708.91,708.15,1.05836012]
[1735701026119,0.25983936,708.9,708.15,1.05836012]
[1735701026318,0.25983936,708.89,708.15,1.05836012]
[1735701026515,0.25983936,708.88,708.15,1.05836012]
[1735701026719,0.25983936,708.87,708.15,1.05836012]
[1735701026917,0.25983936,708.86,708.15,1.05836012]
[1735701027123,0.25983936,708.85,708.15,1.05836012]
[1735701027423,0.25982595,708.84,708.15,1.05836012]
[1735701027621,0.25982595,708.83,708.15,1.05836012]
[1735701027821,0.25982595,708.82,708.16,1.05836012]
[1735701028119,0.25982595,708.81,708.16,1.05836012]
[1735701028322,1.47360844,708.99,708.16,1.05836012]
[1735701028524,0.25983398,708.98,708.16,1.05836012]
[1735701029925,1.47360844,708.99,708.16,1.05836012]
[1735701029926,0.25983411,708.97,708.16,1.05836012]
[1735701030129,0.25983411,708.96,708.16,1.05836012]
[1735701030424,0.25983411,708.96,707.98,1.05762264]
[1735701030425,0.25983411,708.95,708.17,1.05836012]
[1735701030620,1.47360844,708.99,708.17,1.05836012]
[1735701030827,0.25983411,708.98,708.17,1.05836012]
[1735701032727,0.25983414,708.97,708.17,1.05836012]
[1735701032927,0.25983414,708.96,708.17,1.05836012]
[1735701033129,0.25983414,708.95,708.17,1.05836012]
[1735701033329,0.25983414,708.94,708.17,1.05836012]
[1735701033524,1.47360844,708.99,708.17,1.05836012]
[1735701033525,0.25983414,708.93,708.17,1.05836012]
[1735701033726,0.25983414,708.92,708.18,1.05836012]
[1735701033927,0.25983414,708.91,708.18,1.05836012]
[1735701034125,0.25983414,708.9,708.18,1.05836012]
[1735701034433,0.25983414,708.89,708.18,1.05836012]
[1735701034730,0.25983414,708.88,708.17,1.05836012]
[1735701034931,0.25983414,708.87,708.17,1.05836012]
[1735701035132,0.25983414,708.86,708.17,1.05836012]
[1735701035330,1.47360844,708.99,708.17,1.05836012]
[1735701035630,0.25983706,708.98,708.17,1.05836012]
[1735701037932,0.25981491,708.97,708.17,1.05836012]
[1735701038134,0.25981491,708.96,708.17,1.05836012]
[1735701038334,0.25981491,708.95,708.17,1.05836012]
[1735701038532,0.25981491,708.99,708.17,1.05836012]
[1735701038728,0.25981472,708.98,708.22,1.05836012]
[1735701038932,0.25981472,708.97,708.22,1.05836012]
[1735701039134,0.25981472,708.96,708.22,1.05836012]
[1735701039334,0.25981472,708.95,708.22,1.05836012]
[1735701039529,0.25981472,708.99,708.22,1.05836012]
[1735701039735,0.25981472,708.98,708.22,1.05836012]
[1735701039935,0.25981472,708.97,708.22,1.05836012]
[1735701040136,0.28208744,709.0,708.22,1.05836012]
[1735701040137,0.25981472,708.96,708.22,1.05836012]
[1735701040334,0.25981472,708.95,708.22,1.05836012]
[1735701040534,0.28208744,709.0,708.22,1.05836012]
[1735701040733,0.25980521,708.99,708.22,1.05836012]
[1735701042029,0.25980521,708.99,708.2,1.05836012]
[1735701043136,0.28208744,709.0,708.2,1.05836012]
[1735701043331,0.25981057,708.99,708.2,1.05836012]
[1735701045840,0.28208744,709.0,708.2,1.05836012]
[1735701046040,0.25980547,708.99,708.2,1.05836012]
[1735701046736,0.25980368,708.98,708.19,1.05836012]
[1735701046942,0.25980368,708.97,708.19,1.05836012]
[1735701047137,0.25980368,708.96,708.19,1.05836012]
[1735701047334,0.28208744,709.0,708.19,1.05836012]
[1735701047335,0.25980368,708.95,708.19,1.05836012]
[1735701047541,0.25980368,708.94,708.2,1.05836012]
[1735701047744,0.25980368,708.93,708.2,1.05836012]
[1735701047941,0.25980368,708.92,708.2,1.05836012]
[1735701048141,0.25980368,708.91,708.2,1.05836012]
[1735701048443,0.25980368,708.9,708.19,1.05836012]
[1735701048742,0.28208744,709.0,708.19,1.05836012]
[1735701049036,0.25980528,708.99,708.19,1.05836012]
[1735701049438,0.25980528,708.99,708.18,1.05836012]
[1735701049941,0.28208744,709.0,708.18,1.05836012]
[1735701050136,0.25979925,708.99,708.18,1.05836012]
[1735701050341,0.25979925,708.99,708.17,1.05836012]
[1735701051239,0.28208744,709.0,708.17,1.05836012]
[1735701051440,0.25979907,708.99,708.17,1.05836012]
[1735701052243,0.25979907,708.99,708.16,1.05836012]
[1735701053543,0.25979907,708.99,707.7,0.75624627]
[1735701053544,0.25979907,708.99,708.15,1.05836012]
[1735701053938,0.25980169,708.98,708.15,1.05836012]
[1735701054142,0.25980169,708.97,708.15,1.05836012]
[1735701054338,0.25980169,708.96,708.15,1.05836012]
[1735701054538,0.28208744,709.0,708.15,1.05836012]
[1735701054745,0.25979878,708.99,708.15,1.05836012]
[1735701055545,0.25979878,708.99,708.16,1.05836012]
[1735701056642,0.25979878,708.99,708.15,1.05836012]
[1735701057944,0.25979878,708.99,708.14,1.05836012]
[1735701058845,0.28208744,709.0,708.14,1.05836012]
[1735701059746,0.28208744,709.0,708.18,1.05836012]
[1735701061048,0.28208744,709.0,708.16,1.05836012]
[1735701061948,0.28208744,709.0,708.15,1.05836012]
[1735701065652,0.28208744,709.0,708.13,1.05836012]
[1735701066448,0.28208744,709.0,708.14,1.05836012]
[1735701067553,0.28208744,709.0,708.13,1.05836012]
[1735701068650,0.28208744,709.0,707.74,0.75624627]
[1735701068651,0.28208744,709.0,708.14,1.05836012]
[1735701069655,0.28208744,709.0,708.16,1.05836012]
[1735701070054,0.25979037,708.99,708.16,1.05836012]
[1735701070358,0.28208744,709.0,708.16,1.05836012]
[1735701070751,0.28208744,709.0,708.18,1.05836012]
[1735701071352,0.25978442,708.99,708.18,1.05836012]
[1735701071556,0.28208744,709.0,708.19,1.05836012]
[1735701072454,0.28208744,709.0,707.99,1.05762264]
[1735701072455,0.28208744,709.0,708.28,1.05836012]
[1735701073258,1.47319255,709.32,708.28,1.05836012]
[1735701073456,0.259718,709.31,708.28,1.05836012]
[1735701073956,0.259718,709.31,708.26,1.05836012]
[1735701074559,0.25973195,709.3,708.26,1.05836012]
[1735701074760,0.25973195,709.31,708.26,1.05836012]
[1735701075055,0.25973195,709.3,708.18,1.05836012]
[1735701075254,0.25973195,709.29,708.18,1.05836012]
[1735701075457,1.47319255,709.32,708.18,1.05836012]
[1735701075657,0.25972582,709.31,708.18,1.05836012]
[1735701075851,0.25972582,709.31,708.19,1.05836012]
[1735701078560,0.25972582,709.31,708.18,1.05836012]
[1735701079459,0.25972582,709.31,708.16,1.05836012]
[1735701079962,1.47319255,709.32,708.16,1.05836012]
[1735701080165,0.25972143,709.31,708.16,1.05836012]
[1735701081964,0.25972143,709.31,708.23,1.05836012]
[1735701082657,1.47319255,709.32,708.23,1.05836012]
[1735701082658,0.25972084,709.3,708.23,1.05836012]
[1735701082863,0.25972084,709.29,708.23,1.05836012]
[1735701083064,0.25972084,709.28,708.23,1.05836012]
[1735701083266,0.25972084,709.27,708.27,1.05836012]
[1735701083563,0.25972084,709.26,708.27,1.05836012]
[1735701083765,0.25972084,709.31,708.27,1.05836012]
[1735701084066,0.25972084,709.3,708.27,1.05836012]
[1735701084367,0.25972084,709.29,708.26,1.05836012]
[1735701084566,0.25972084,709.28,708.26,1.05836012]
[1735701084769,0.25972084,709.27,708.26,1.05836012]
[1735701084963,0.25972084,709.26,708.26,1.05836012]
[1735701085168,0.25972084,709.25,708.26,1.05836012]
[1735701085368,0.25974599,709.24,708.26,1.05836012]
[1735701085570,0.25974599,709.23,708.2,1.05836012]
[1735701085871,0.25974599,709.22,708.2,1.05836012]
[1735701086067,0.25974599,709.21,708.2,1.05836012]
[1735701086268,0.25974599,709.2,708.2,1.05836012]
[1735701086571,0.25974599,709.19,708.2,1.05836012]
[1735701086770,0.25974599,709.18,708.21,1.05836012]
[1735701087072,0.25974599,709.17,708.21,1.05836012]
[1735701087268,0.25974599,709.16,708.21,1.05836012]
[1735701087472,0.25974599,709.15,708.21,1.05836012]
[1735701087671,0.25974599,709.14,708.21,1.05836012]
[1735701087867,0.25974599,709.13,708.22,1.05836012]
[1735701088068,0.2597429,709.12,708.22,1.05836012]
[1735701088269,0.2597429,709.11,708.22,1.05836012]
[1735701088472,0.2597429,709.1,708.22,1.05836012]
[1735701088671,0.2597429,709.09,708.22,1.05836012]
[1735701088871,0.2597429,709.08,708.22,1.05836012]
[1735701089168,1.47319255,709.32,708.22,1.05836012]
[1735701089372,0.25974068,709.31,708.22,1.05836012]
[1735701090973,0.25974068,709.31,708.21,1.05836012]
[1735701092273,0.25974068,709.31,708.25,1.05836012]
[1735701093271,1.47319255,709.32,708.25,1.05836012]
[1735701093574,0.25972483,709.31,708.25,1.05836012]
[1735701094173,0.25972117,709.3,708.25,1.05836012]
[1735701094373,1.47319255,709.32,708.04,1.05762264]
[1735701094374,0.25972117,709.29,708.26,1.05836012]
[1735701094571,1.47319255,709.32,708.26,1.05836012]
[1735701094572,0.25972117,709.28,708.26,1.05836012]
[1735701094873,0.25972117,709.27,708.26,1.05836012]
[1735701095069,0.25972117,709.26,708.26,1.05836012]
[1735701095273,0.25972117,709.25,708.26,1.05836012]
[1735701095475,0.25972117,709.24,708.27,1.05836012]
[1735701095669,0.25972117,709.23,708.27,1.05836012]
[1735701095870,0.25972117,709.22,708.27,1.05836012]
[1735701096070,0.25973916,709.21,708.27,1.05836012]
[1735701096275,1.47319255,709.32,708.27,1.05836012]
[1735701096475,0.25973916,709.31,708.27,1.05836012]
[1735701096675,0.25973916,709.31,708.05,1.05762264]
[1735701096676,0.25973916,709.31,708.2,1.05836012]
[1735701098772,0.2597479,709.3,708.2,1.05836012]
[1735701098977,0.2597479,709.29,708.2,1.05836012]
[1735701099276,0.2597479,709.28,708.2,1.05836012]
[1735701099470,0.2597479,709.27,708.2,1.05836012]
[1735701099772,1.47319255,709.32,707.74,0.75624627]
[1735701099773,0.2597479,709.26,708.21,1.05836012]
[1735701099976,0.2597479,709.25,708.21,1.05836012]
[1735701100177,0.2597479,709.24,708.21,1.05836012]
[1735701100376,0.2597479,709.23,708.21,1.05836012]
[1735701100577,0.2597479,709.22,708.21,1.05836012]
[1735701100778,0.2597479,709.21,708.2,1.05836012]
[1735701100976,0.2597479,709.2,708.2,1.05836012]
[1735701101278,0.2597479,709.19,708.2,1.05836012]
[1735701101475,0.2597479,709.18,708.2,1.05836012]
[1735701101776,0.2597479,709.17,708.2,1.05836012]
[1735701101977,1.47319255,709.32,708.21,1.05836012]
[1735701101978,0.2597479,709.16,708.21,1.05836012]
[1735701102181,0.25975294,709.15,708.21,1.05836012]
[1735701102375,0.25975294,709.14,708.21,1.05836012]
[1735701102679,1.47319255,709.32,708.21,1.05836012]
[1735701102880,0.2597536,709.31,708.21,1.05836012]
[1735701104178,1.47319255,709.32,707.99,1.05762264]
[1735701104179,0.25975667,709.3,708.22,1.05836012]
[1735701104371,1.47319255,709.32,708.22,1.05836012]
[1735701104372,0.25975667,709.29,708.22,1.05836012]
[1735701104575,0.25975667,709.28,708.22,1.05836012]
[1735701104775,0.25975667,709.27,708.22,1.05836012]
[1735701105075,0.25975667,709.26,708.21,1.05836012]
[1735701105379,1.47319255,709.32,708.21,1.05836012]
[1735701105380,0.25975667,709.25,708.21,1.05836012]
[1735701105580,0.25975667,709.31,708.21,1.05836012]
[1735701105778,0.5417248,709.3,708.21,1.05836012]
[1735701105978,0.25975667,709.29,708.21,1.05836012]
[1735701106782,0.25977886,709.28,708.21,1.05836012]
[1735701106982,0.25977886,709.27,708.21,1.05836012]
[1735701107181,0.25977886,709.26,708.21,1.05836012]
[1735701107376,0.25977886,709.25,708.21,1.05836012]
[1735701107577,0.54177085,709.24,708.21,1.05836012]
[1735701107780,0.25977886,709.23,708.21,1.05836012]
[1735701108080,0.25977886,709.23,708.15,1.05836012]
[1735701108383,0.28199994,709.22,708.15,1.05836012]
[1735701108582,0.25977886,709.21,708.15,1.05836012]
[1735701109478,0.25979206,709.2,708.15,1.05836012]
[1735701109678,0.25979206,709.19,708.15,1.05836012]
[1735701109881,0.25979206,709.18,708.15,1.05836012]
[1735701110178,0.25979206,709.17,708.15,1.05836012]
[1735701110383,0.28199994,709.22,708.15,1.05836012]
[1735701110582,0.25978976,709.21,708.15,1.05836012]
[1735701110984,0.25978976,709.21,708.13,1.05836012]
[1735701112287,0.25978976,709.21,708.14,1.05836012]
[1735701113186,0.25978976,709.21,708.13,1.05836012]
[1735701113792,0.25978976,709.2,708.13,1.05836012]
[1735701113991,0.25978976,709.19,708.13,1.05836012]
[1735701114187,0.25978976,709.18,708.13,1.05836012]
[1735701114395,0.25978976,709.17,708.12,1.05836012]
[1735701114587,0.25978976,709.29,708.12,1.05836012]
[1735701114790,0.25978888,709.28,708.12,1.05836012]
[1735701114987,0.25978888,709.29,708.12,1.05836012]
[1735701115194,0.25978888,709.28,708.15,1.05836012]
[1735701115392,0.25978888,709.27,708.15,1.05836012]
[1735701115586,0.25978888,709.26,708.15,1.05836012]
[1735701115786,0.25978888,709.25,708.15,1.05836012]
[1735701115988,0.25978888,709.24,708.15,1.05836012]
[1735701116189,0.25978888,709.23,708.15,1.05836012]
[1735701116394,0.25978888,709.22,708.15,1.05836012]
[1735701116588,0.25978888,709.21,708.15,1.05836012]
[1735701116791,0.25978888,709.2,708.15,1.05836012]
[1735701117495,0.25978914,709.19,708.15,1.05836012]
[1735701117695,0.25978914,709.18,708.15,1.05836012]
[1735701117893,0.25978914,709.17,708.15,1.05836012]
[1735701118093,1.47332769,709.21,708.15,1.05836012]
[1735701118294,0.25978998,709.2,708.15,1.05836012]
[1735701119795,0.25978998,709.2,708.05,1.05836012]
[1735701120190,0.25979899,709.19,708.05,1.05836012]
[1735701120389,0.25979899,709.18,708.05,1.05836012]
[1735701120594,0.25979899,709.17,708.05,1.05836012]
[1735701120797,0.25979899,709.16,708.05,1.05836012]
[1735701120998,0.25979899,709.15,707.99,1.05836012]
[1735701121192,0.25979899,709.14,707.99,1.05836012]
[1735701121398,0.25979899,709.13,707.99,1.05836012]
[1735701121593,0.25979899,709.12,707.99,1.05836012]
[1735701121794,0.25979899,709.11,707.99,1.05836012]
[1735701121998,0.25979684,709.1,707.99,1.05836012]
[1735701122200,1.47332769,709.21,707.99,1.05836012]
[1735701122399,0.2597966,709.2,707.99,1.05836012]
[1735701123197,0.2597966,709.2,707.26,2.15931289]
[1735701123198,0.2597966,709.2,708.0,1.05836012]
[1735701124693,0.25979692,709.19,708.0,1.05836012]
[1735701124895,0.25979692,709.18,708.0,1.05836012]
[1735701125093,0.25979692,709.17,708.0,1.05836012]
[1735701125395,0.25979692,709.16,708.0,1.05836012]
[1735701125598,0.25979692,709.2,707.99,1.05836012]
[1735701126597,0.25979692,709.2,708.0,1.05836012]
[1735701127397,1.47332769,709.21,708.0,1.05836012]
[1735701127597,0.25978015,709.2,707.99,1.05836012]
[1735701128702,0.25978015,709.2,708.04,1.05836012]
[1735701129599,0.25978015,709.2,707.77,1.05762264]
[1735701129600,0.25978015,709.2,708.07,1.05836012]
[1735701129994,1.47332769,709.21,708.07,1.05836012]
[1735701130302,0.25978813,709.2,708.07,1.05836012]
[1735701130502,0.25978813,709.2,707.4,2.15931289]
[1735701130503,0.25978813,709.2,708.14,1.05836012]
[1735701131503,0.25978813,709.2,707.53,2.15931289]
[1735701131504,0.25978813,709.2,708.16,1.05836012]
[1735701132700,0.25978813,709.2,708.17,1.05836012]
[1735701133708,0.25978813,709.2,707.56,2.15931289]
[1735701133709,0.25978813,709.2,708.18,1.05836012]
[1735701134702,0.25978813,709.2,707.57,2.15931289]
[1735701134703,0.25978813,709.2,708.2,1.05836012]
[1735701135909,0.25978813,709.2,708.21,1.05836012]
[1735701136707,0.25978813,709.2,708.24,1.05836012]
[1735701137810,0.25978813,709.2,708.16,1.05836012]
[1735701138206,0.2597867,709.19,708.16,1.05836012]
[1735701138412,0.2597867,709.18,708.16,1.05836012]
[1735701138613,0.2597867,709.17,708.17,1.05836012]
[1735701138812,1.47332769,709.21,708.17,1.05836012]
[1735701139009,0.25978835,709.2,708.17,1.05836012]
[1735701139709,0.25978835,709.2,708.16,1.05836012]
[1735701140814,1.47332769,709.21,708.17,1.05836012]
[1735701141113,0.25980052,709.2,708.17,1.05836012]
[1735701141715,0.25980046,709.19,708.17,1.05836012]
[1735701141911,0.25980046,709.18,708.17,1.05836012]
[1735701142111,0.25980046,709.17,708.17,1.05836012]
[1735701142312,0.25980046,709.16,708.17,1.05836012]
[1735701142512,0.25980046,709.15,708.17,1.05836012]
[1735701142811,0.25980046,709.14,708.17,1.05836012]
[1735701143010,0.25980046,709.13,708.17,1.05836012]
[1735701143214,0.25980046,709.12,708.17,1.05836012]
[1735701143412,0.25980046,709.11,708.17,1.05836012]
[1735701143616,0.25980034,709.1,708.17,1.05836012]
[1735701143914,0.25980034,709.09,708.17,1.05836012]
[1735701144110,1.47332769,709.21,708.17,1.05836012]
[1735701144311,0.25979274,709.2,708.17,1.05836012]
[1735701146314,0.25977922,709.19,708.2,1.05836012]
[1735701146515,0.25977922,709.18,708.2,1.05836012]
[1735701146817,0.25977922,709.17,708.2,1.05836012]
[1735701147018,0.25977922,709.16,708.2,1.05836012]
[1735701147218,0.25977922,709.15,708.2,1.05836012]
[1735701147418,1.47332769,709.21,708.27,1.05836012]
[1735701147419,0.25977922,709.2,708.27,1.05836012]
[1735701147611,0.25977922,709.19,708.27,1.05836012]
[1735701147815,0.25977922,709.18,708.27,1.05836012]
[1735701148015,0.25977922,709.17,708.27,1.05836012]
[1735701148214,0.25977922,709.16,708.27,1.05836012]
[1735701148417,0.25977922,709.16,707.65,2.15931289]
[1735701148418,0.25977922,709.15,708.23,1.05836012]
[1735701148717,0.25977922,709.14,708.23,1.05836012]
[1735701148918,0.25978375,709.13,708.23,1.05836012]
[1735701149221,0.25978375,709.12,708.23,1.05836012]
[1735701149418,0.25978375,709.11,708.23,1.05836012]
[1735701149617,0.25978375,709.1,708.23,1.05836012]
[1735701149918,0.25978375,709.09,708.23,1.05836012]
[1735701150120,0.25978375,709.08,708.23,1.05836012]
[1735701150321,1.47332769,709.21,708.23,1.05836012]
[1735701150522,0.25977843,709.2,708.23,1.05836012]
[1735701150720,0.25977843,709.2,708.24,1.05836012]
[1735701150915,0.25977735,709.19,708.24,1.05836012]
[1735701151120,0.25977735,709.18,708.24,1.05836012]
[1735701151316,0.25977735,709.17,708.24,1.05836012]
[1735701151516,0.25977735,709.16,708.24,1.05836012]
[1735701151717,0.25977496,709.15,708.25,1.05836012]
[1735701152021,0.25977496,709.14,708.25,1.05836012]
[1735701152215,0.25977496,709.13,708.25,1.05836012]
[1735701152421,0.25977496,709.12,708.25,1.05836012]
[1735701152621,0.25977496,709.11,708.25,1.05836012]
[1735701152817,0.25977496,709.1,708.24,1.05836012]
[1735701153020,0.25977496,709.09,708.24,1.05836012]
[1735701153222,0.25977496,709.08,708.24,1.05836012]
[1735701153420,1.47332769,709.21,708.24,1.05836012]
[1735701153624,0.25977528,709.2,708.24,1.05836012]
[1735701154624,0.25977528,709.2,708.22,1.05836012]
[1735701155619,0.25977528,709.2,708.24,1.05836012]
[1735701156424,0.25977528,709.2,708.25,1.05836012]
[1735701157522,0.25977528,709.2,708.26,1.05836012]
[1735701158928,0.25977528,709.2,708.3,1.05836012]
[1735701159624,1.47332769,709.21,708.3,1.05836012]
[1735701159825,0.25977997,709.2,708.3,1.05836012]
[1735701160025,0.25977997,709.2,708.31,1.05836012]
[1735701161033,0.25977997,709.2,708.3,1.05836012]
[1735701162132,0.25977997,709.2,708.31,1.05836012]
[1735701163135,0.25977997,709.2,708.33,1.05836012]
[1735701165232,0.25976972,709.19,708.33,1.05836012]
[1735701165429,1.47332769,709.21,708.33,1.05836012]
[1735701165430,0.25976972,709.18,708.33,1.05836012]
[1735701165632,0.25976972,709.17,708.33,1.05836012]
[1735701165834,0.25977304,709.16,708.33,1.05836012]
[1735701166135,0.25977304,709.15,708.33,1.05836012]
[1735701166330,0.25977304,709.14,708.32,1.05836012]
[1735701166529,0.25977304,709.2,708.32,1.05836012]
[1735701166732,0.25977304,709.19,708.32,1.05836012]
[1735701166933,0.25977304,709.18,708.32,1.05836012]
[1735701167234,0.25977304,709.17,708.32,1.05836012]
[1735701167435,0.25977304,709.16,708.32,1.05836012]
[1735701167629,1.47332769,709.21,708.32,1.05836012]
[1735701167630,0.25977304,709.15,708.32,1.05836012]
[1735701167828,0.25977331,709.14,708.32,1.05836012]
[1735701168033,0.25977331,709.13,708.32,1.05836012]
[1735701168238,0.25977331,709.12,708.32,1.05836012]
[1735701168436,0.25977331,709.11,708.32,1.05836012]
[1735701168735,0.25977331,709.1,708.32,1.05836012]
[1735701168936,0.25977331,709.09,708.32,1.05836012]
[1735701169134,1.47332769,709.21,708.32,1.05836012]
[1735701169135,0.25977331,709.08,708.32,1.05836012]
[1735701169436,0.25977331,709.07,708.32,1.05836012]
[1735701169636,0.25977331,709.06,708.32,1.05836012]
[1735701169938,0.25977331,709.05,708.3,1.05836012]
[1735701170233,0.25977331,709.04,708.3,1.05836012]
[1735701170435,0.25977116,709.03,708.3,1.05836012]
[1735701170636,0.25977116,709.02,708.32,1.05836012]
[1735701170930,1.47332769,709.21,708.32,1.05836012]
[1735701170931,0.25977116,709.01,708.32,1.05836012]
[1735701171136,0.25977116,709.0,708.32,1.05836012]
[1735701171436,0.25977116,708.99,708.32,1.05836012]
[1735701171637,0.25977116,708.98,708.32,1.05836012]
[1735701171831,0.25977116,708.97,708.3,1.05836012]
[1735701172034,1.47332769,709.21,708.3,1.05836012]
[1735701172232,0.2597693,709.2,708.3,1.05836012]
[1735701172837,0.2597693,709.2,708.33,1.05836012]
[1735701173838,0.2597693,709.2,708.32,1.05836012]
[1735701174532,0.2597768,709.19,708.32,1.05836012]
[1735701174837,0.2597768,709.18,708.31,1.05836012]
[1735701175030,0.2597768,709.17,708.31,1.05836012]
[1735701175236,0.2597768,709.16,708.31,1.05836012]
[1735701175534,0.2597768,709.15,708.31,1.05836012]
[1735701175739,0.2597768,709.14,708.31,1.05836012]
[1735701175940,0.25977632,709.13,708.31,1.05836012]
[1735701176141,0.25977632,709.12,708.32,1.05836012]
[1735701176335,0.25977632,709.11,708.32,1.05836012]
[1735701176538,0.25977632,709.1,708.32,1.05836012]
[1735701176739,0.25977632,709.09,708.32,1.05836012]
[1735701176938,0.25977632,709.08,708.32,1.05836012]
[1735701177140,0.25977632,709.07,708.32,1.05836012]
[1735701177340,0.25977632,709.06,708.32,1.05836012]
[1735701177541,0.25977632,709.05,708.32,1.05836012]
[1735701177741,0.25977632,709.04,708.32,1.05836012]
[1735701178041,0.25977632,709.03,708.32,1.05836012]
[1735701178242,0.25977632,709.02,708.32,1.05836012]
[1735701178542,0.25977632,709.02,708.13,1.05762264]
[1735701178543,0.25977174,709.01,708.34,1.05836012]
[1735701178737,0.25977174,709.2,708.34,1.05836012]
[1735701178941,0.25977174,709.19,708.34,1.05836012]
[1735701179141,0.25977174,709.18,708.34,1.05836012]
[1735701179335,1.47332769,709.21,707.86,0.75624627]
[1735701179336,0.25977174,709.17,708.35,1.05836012]
[1735701179537,0.25977174,709.16,708.35,1.05836012]
[1735701179735,0.25977174,709.15,708.35,1.05836012]
[1735701179936,0.25977174,709.14,708.35,1.05836012]
[1735701180142,0.25977174,709.13,708.35,1.05836012]
[1735701180341,0.25977174,709.12,708.35,1.05836012]
[1735701180540,1.47332769,709.21,708.35,1.05836012]
[1735701180541,0.25977174,709.11,708.35,1.05836012]
[1735701180742,0.25977174,709.1,708.35,1.05836012]
[1735701181044,0.25976314,709.09,708.35,1.05836012]
[1735701181239,0.25976314,709.08,708.35,1.05836012]
[1735701181444,0.25976314,709.2,708.35,1.05836012]
[1735701181739,0.25976931,709.19,708.38,1.05836012]
[1735701181938,0.25976931,709.2,708.38,1.05836012]
[1735701182138,0.25976931,709.19,708.38,1.05836012]
[1735701182341,0.25976931,709.18,708.38,1.05836012]
[1735701182543,0.25976931,709.17,708.38,1.05836012]
[1735701182743,0.25976931,709.16,708.36,1.05836012]
[1735701182943,0.25976931,709.15,708.36,1.05836012]
[1735701183143,1.47332769,709.21,708.36,1.05836012]
[1735701183352,0.25976591,709.2,708.36,1.05836012]
[1735701185248,0.25976591,709.2,708.33,1.05836012]
[1735701185844,0.25977959,709.19,708.33,1.05836012]
[1735701186046,0.25977959,709.18,708.33,1.05836012]
[1735701186248,0.25977959,709.17,708.33,1.05836012]
[1735701186447,0.25977959,709.16,708.33,1.05836012]
[1735701186645,0.25977959,709.15,708.33,1.05836012]
[1735701186846,0.25977959,709.14,708.33,1.05836012]
[1735701187045,0.25977959,709.2,708.33,1.05836012]
[1735701187251,0.25977959,709.19,708.33,1.05836012]
[1735701187451,0.25977959,709.18,708.33,1.05836012]
[1735701187751,0.25977959,709.17,708.33,1.05836012]
[1735701188048,0.25977959,709.16,708.33,1.05836012]
[1735701188352,0.25977959,709.15,708.34,1.05836012]
[1735701188546,0.25977884,709.14,708.34,1.05836012]
[1735701188748,0.25977884,709.13,708.34,1.05836012]
[1735701188947,0.25977884,709.12,708.33,1.05836012]
[1735701189151,0.25977884,709.11,708.33,1.05836012]
[1735701189351,0.25977797,709.1,708.33,1.05836012]
[1735701189653,0.25977797,709.09,708.33,1.05836012]
[1735701189855,0.25977797,709.08,708.34,1.05836012]
[1735701190051,1.47332769,709.21,708.34,1.05836012]
[1735701190250,0.25977795,709.2,708.34,1.05836012]
[1735701191356,0.25976945,709.19,708.34,1.05836012]
[1735701191550,0.25976945,709.18,708.34,1.05836012]
[1735701191752,0.25976945,709.17,708.34,1.05836012]
[1735701191953,0.25976945,709.16,708.36,1.05836012]
[1735701192153,0.25976945,709.15,708.36,1.05836012]
[1735701192354,0.25976945,709.14,708.36,1.05836012]
[1735701192554,0.25976945,709.13,708.36,1.05836012]
[1735701192755,0.25976945,709.12,708.36,1.05836012]
[1735701192955,0.25976945,709.11,708.36,1.05836012]
[1735701193256,1.05468581,709.29,708.36,1.05836012]
[1735701193457,0.25972562,709.28,708.45,1.05836012]
[1735701193657,0.25972562,709.27,708.45,1.05836012]
[1735701193857,1.47309901,709.34,708.45,1.05836012]
[1735701194058,0.25972296,709.33,708.45,1.05836012]
[1735701194560,0.25972296,709.33,708.44,1.05836012]
[1735701195458,0.25972296,709.33,708.4,1.05836012]
[1735701196058,0.25972296,709.32,708.4,1.05836012]
[1735701196260,0.25972296,709.31,708.4,1.05836012]
[1735701196455,0.25972296,709.41,708.4,1.05836012]
[1735701196654,0.25972012,709.4,708.4,1.05836012]
[1735701196857,0.25972012,709.39,708.42,1.05836012]
[1735701197057,0.25972012,709.38,708.42,1.05836012]
[1735701197255,0.25972332,709.37,708.42,1.05836012]
[1735701197454,0.25972332,709.36,708.42,1.05836012]
[1735701197656,0.25972332,709.35,708.42,1.05836012]
[1735701197959,0.25972332,709.34,708.42,1.05836012]
[1735701198159,0.25972332,709.33,708.38,1.05836012]